Cogmind - Beta 10.2 @@@ ROGUE MODE // 2021.10.09 @ 16:12:13 Player: zapruda Result: Destroyed by G-34 Mercenary with Small Laser Performance ------------- Evolutions (1) 500 Regions Visited (2) 400 Robots Destroyed (26) 130 Value Destroyed (494) 494 Prototype IDs (3) 60 Alien Tech Used (0) 0 Bonus (0) 0 TOTAL SCORE: 1584 Bonus ------- None Cogmind --------- Core Integrity 0/400 Matter 236/300 Energy 99/100 System Corruption 4% Temperature Cool (12) Movement Core (300) Ox5 Location -9/Materials Parts ------- > --- POWER (1) -------- (None) > --- PROPULSION (4) --- (None) > --- UTILITY (2) ------ Large Storage Unit Signal Interpreter > --- WEAPON (2) ------- (None) > --- INVENTORY (10) --- Light Nuclear Core Small Battery (100) Improved Sensor Array Transport Network Coupler Targeting Computer Hacking Suite System Shield System Shield Peak State ------------ > --- POWER ------------ Improved Ion Engine > --- PROPULSION ------- Titanium Leg Titanium Leg Titanium Leg Titanium Leg > --- UTILITY ---------- Large Storage Unit Signal Interpreter > --- WEAPON ----------- Particle Cannon > --- INVENTORY -------- Improved Ion Engine Light Nuclear Core Small Battery Improved Sensor Array Transport Network Coupler Targeting Computer Hacking Suite System Shield System Shield [Rating: 19] Favorites ----------- Power Light Nuclear Core Engine Ion Engine Power Core Light Nuclear Core Propulsion Aluminum Leg Treads Light Treads Leg Aluminum Leg Hover Unit Hover Unit Utility Small Storage Unit Device Improved Heat Sink Storage Small Storage Unit Processor Signal Interpreter Weapon Assault Rifle Energy Gun Particle Gun Energy Cannon Particle Cannon Ballistic Gun Assault Rifle Special Weapon Mining Laser Build | -11 -10 -9 ------- Run | Scr Mat Mat Slots Evolved 2 | . . 2 Power . | . . . Propulsion 2 | . . 2 Utility . | . . . Weapon . | . . . Parts Attached 33 | . 22 11 Power 4 | . 2 2 Engine 3 | . 1 2 Core 1 | . 1 . Reactor . | . . . Propulsion 20 | . 13 7 Treads 1 | . 1 . Leg 13 | . 9 4 Wheel . | . . . Hover 6 | . 3 3 Flight . | . . . Utility 4 | . 3 1 Device 1 | . 1 . Storage 2 | . 1 1 Processor 1 | . 1 . Hackware . | . . . Protection . | . . . Artifact . | . . . Weapon 5 | . 4 1 Energy Gun 1 | . 1 . Energy Cannon 1 | . . 1 Ballistic Gun 2 | . 2 . Ballistic Cannon . | . . . Launcher . | . . . Special Weapon 1 | . 1 . Impact Weapon . | . . . Slashing Weapon . | . . . Piercing Weapon . | . . . Special Melee Weapon . | . . . Unidentified Prototypes . | . . . Parts Lost 12 | . 2 10 Power 3 | . 1 2 Propulsion 5 | . . 5 Utility . | . . . Weapon 4 | . 1 3 Highest Loss Streak 4 | . 2 4 Average Slot Usage (%) 90 | . 94 76 Engine 6 | . 6 5 Core 6 | . 7 4 Leg 23 | . 23 23 Hover 5 | . 3 15 Device 5 | . 7 . Storage 13 | . 14 11 Processor 5 | . 4 11 Ballistic Gun 19 | . 24 2 Special Weapon 2 | . 2 2 Naked Turns . | . . . Heaviest Build 24 | 12 16 24 Greatest Support 68 | 20 20 68 Greatest Overweight (x) 5 | . 4 5 Average Overweight (x) . | . . . Largest Inventory Capacity 10 | 6 8 10 Average Capacity 7 | 6 6 9 Most Carried 10 | 6 8 10 Average Carried 6 | 6 5 7 Final Capacity 10 | 6 8 10 Final Carried 8 | 6 8 8 Class Distribution -------------------- 71% | Mutant 28% | Scavenger-Mutant Dominant Class ---------------- Mutant | -10/Materials Mutant | -9/Materials Resources | -11 -10 -9 ----------- Run | Scr Mat Mat Matter Collected 822 | 200 545 77 Remotely . | . . . Salvage Created 898 | . 805 93 Parts 58 | . 48 10 Haulers Intercepted 2 | . 2 . Recyclers Shooed 3 | . 2 1 Parts Field Recycled . | . . . Retrieved Matter . | . . . Parts Self-Destructed . | . . . Prevented . | . . . Kills | -11 -10 -9 ------- Run | Scr Mat Mat Combat Hostiles Destroyed 13 | . 9 4 Guns 13 | . 9 4 Classes Destroyed 8 | . 6 2 Worker 2 | . 2 . Builder 1 | . . 1 Hauler 2 | . 2 . Recycler 3 | . 3 . Operator 3 | . 3 . Watcher 2 | . 2 . Swarmer 4 | . . 4 Grunt 9 | . 9 . Best Kill Streak 4 | . 4 3 Combat Bots Only 2 | . 2 2 Max Kills in Single Turn 1 | . 1 1 Gunslinging . | . . . Exploded . | . . . Melee . | . . . Uniques/NPCs Destroyed . | . . . Combat | -11 -10 -9 -------- Run | Scr Mat Mat Damage Taken 2209 | . 557 1652 Core 461 | . 61 400 Absorbed by Shields . | . . . Core Remaining (%) 87 | 100 75 . Volleys Fired 99 | . 82 17 Largest 2 | . 2 2 Hottest 120 | . 120 120 Shots Fired 173 | . 151 22 Gun 164 | . 150 14 Cannon 3 | . . 3 Launcher . | . . . Special 6 | . 1 5 Kinetic 158 | . 144 14 Thermal 15 | . 7 8 Explosive . | . . . Electromagnetic . | . . . Robot Hit Streak 8 | . 8 3 Robot Miss Streak 6 | . 6 5 Penetration Max . | . . . Secondary Targets 2 | . 2 . Max Gunslinging Chain 1 | . 1 . Shots Hit Robots 92 | . 84 8 Core Hits 50 | . 42 8 Critical Hits . | . . . Critical Kills . | . . . Critical Parts Destroyed . | . . . Melee Attacks . | . . . Impact . | . . . Slashing . | . . . Piercing . | . . . Sneak Attacks . | . . . Combat Hostiles . | . . . Follow-up Attacks . | . . . Damage Inflicted 1219 | . 1040 179 Guns 1149 | . 1040 109 Cannons 42 | . . 42 Explosions . | . . . Melee . | . . . Ramming 28 | . . 28 Kinetic 1047 | . 938 109 Thermal 144 | . 102 42 Explosive . | . . . Electromagnetic . | . . . Impact . | . . . Slashing . | . . . Piercing . | . . . Highest Corruption 4 | . . 4 Average Corruption 3 | . . 3 Corruption Purged . | . . . Effects 3 | . . 3 Matter Fused 1 | . . 1 Heat Flow Errors 1 | . . 1 Data Loss (minor) 1 | . . 1 Overload Shots . | . . . Overflow Damage . | . . . Projectiles . | . . . Explosions . | . . . Melee . | . . . Knockbacks . | . . . Impact . | . . . Kinetic . | . . . Secondary . | . . . Self-Inflicted Damage 7 | . . 7 Shots . | . . . Rammed 3 | . . 3 Targets Rammed 7 | . . 7 Kicked 4 | . . 4 Crushed . | . . . Highest Temperature 175 | . 99 175 Average Temperature 69 | . 40 83 Received Heat Transfer 801 | . 288 513 Siege Activations . | . . . Robots Corrupted . | . . . Combat Hostiles . | . . . Parts Fried . | . . . Impact Corruptions . | . . . Robots Melted . | . . . Combat Hostiles . | . . . Parts Melted 1 | . 1 . Heat Transferred 296 | . 222 74 Parts Sabotaged . | . . . Parts Stolen . | . . . Parts Stripped . | . . . Power Chain Reactions . | . . . Missiles Intercepted . | . . . Alert | -11 -10 -9 ------- Run | Scr Mat Mat Peak Influence 174 | . 174 166 Initial 26 | . . 26 Average 97 | . 90 123 Maximum Alert Level . | . . . Low Security (%) 100 | 100 100 100 Level 1 . | . . . Level 2 . | . . . Level 3 . | . . . Level 4 . | . . . Level 5 . | . . . High Security . | . . . Max Security . | . . . Squads Dispatched 7 | . 2 5 Investigation 1 | . . 1 Extermination . | . . . Reinforcement 6 | . 2 4 Assault . | . . . Garrison . | . . . Intercept . | . . . Construction Impeded . | . . . Haulers Reinforced . | . . . Stealth | -11 -10 -9 --------- Run | Scr Mat Mat Distress Signals 1 | . . 1 Communications Jammed . | . . . Distress Signals . | . . . Times Spotted 52 | . 33 19 Peak Tracking Total 9 | . 4 9 Tactical Retreats . | . . . Traps | -11 -10 -9 ------- Run | Scr Mat Mat Traps Triggered 5 | . 2 3 Indirectly . | . . . Trap Hack Attempts . | . . . Triggered . | . . . Disarmed . | . . . Reprogrammed . | . . . Reused . | . . . Traps Extracted . | . . . Installed . | . . . Triggered . | . . . Machines | -11 -10 -9 ---------- Run | Scr Mat Mat Machines Disabled . | . . . Max in Single Turn . | . . . Machines Sabotaged . | . . . Garrisons Compromised . | . . . Overloaded Fab Kills . | . . . Fab Network Shutdowns . | . . . Hacking | -11 -10 -9 --------- Run | Scr Mat Mat Machines Accessed 6 | . 5 1 Terminals 4 | . 4 . Fabricators . | . . . Repair Stations 1 | . 1 . Recycling Units 1 | . . 1 Scanalyzers . | . . . Garrison Access . | . . . Total Hacks 27 | . 25 2 Successful 19 | . 17 2 Failed 8 | . 8 . Catastrophic . | . . . Database Lockouts . | . . . Manual . | . . . Terminals 19 | . 19 . Fabricators . | . . . Repair Stations 6 | . 6 . Recycling Units 2 | . . 2 Scanalyzers . | . . . Garrison Access . | . . . Terminal Hacks 11 | . 11 . Robot Analysis 1 | . 1 . Prototype ID Bank 2 | . 2 . Emergency Access Points 1 | . 1 . Terminal Index 1 | . 1 . Alert Level 3 | . 3 . Locate Traps 1 | . 1 . Maintenance Status 1 | . 1 . Zone Layout 1 | . 1 . Fabricator Hacks . | . . . Repair Station Hacks 6 | . 6 . Scan Component 3 | . 3 . Repair 3 | . 3 . Recycling Unit Hacks 2 | . . 2 Report Inventory 1 | . . 1 Retrieve Components 1 | . . 1 Scanalyzer . | . . . Garrison Access Hacks . | . . . Unauthorized Hacks . | . . . Terminals . | . . . Fabricators . | . . . Repair Stations . | . . . Recycling Units . | . . . Scanalyzers . | . . . Garrison Access . | . . . Data Cores Recovered 1 | . 1 . Used 1 | . 1 . Hacking Detections 6 | . 5 1 Full Trace Events 1 | . 1 . Feedback Events . | . . . Feedback Blocked . | . . . Robot Schematics Acquired . | . . . Robots Built . | . . . Matter . | . . . Time . | . . . Total Robot Build Rating . | . . . Part Schematics Acquired . | . . . Parts Built . | . . . Matter . | . . . Time . | . . . Total Part Build Rating . | . . . Parts Repaired 3 | . 3 . Time 78 | . 78 . Parts Recycled . | . . . Recycled Matter . | . . . Retrieved Matter . | . . . Retrieved Components 6 | . . 6 Parts Scanalyzed . | . . . Part Schematics Acquired . | . . . Parts Damaged . | . . . Bothacking | -11 -10 -9 ------------ Run | Scr Mat Mat Used RIF Installer . | . . . Robots Hacked . | . . . Non-combat . | . . . Combat . | . . . Robot Hacks Applied . | . . . Relay Couplers Released . | . . . Robots Rewired . | . . . Allies Hacked . | . . . Hacks Repelled . | . . . Allies | -11 -10 -9 -------- Run | Scr Mat Mat Total Allies . | . . . Largest Group . | . . . Highest-Rated Group . | . . . Highest-Rated Ally . | . . . Total Orders . | . . . Ally Attacks . | . . . Total Damage . | . . . Kills . | . . . Allies Corrupted . | . . . Allies Melted . | . . . Intel | -11 -10 -9 ------- Run | Scr Mat Mat Robot Analysis Total 1 | . 1 . Derelict Logs Recovered . | . . . Drone Launches . | . . . Drone Recoveries . | . . . Exploration | -11 -10 -9 ------------- Run | Scr Mat Mat Turns Passed 1354 | 2 1049 303 Spaces Moved 783 | 2 558 223 Core 4 | . 2 2 Treads . | . . . Legs 585 | 2 460 123 Wheels . | . . . Hover 194 | . 96 98 Flight . | . . . Fastest Speed 48 | 120 116 48 Average Speed 113 | 120 119 96 Slowest Speed 300 | 120 250 300 Overloaded Moves . | . . . Propulsion Burnouts . | . . . Robots Hopped . | . . . Cave-ins Triggered . | . . . Exploration Rate (%) 36 | 1 78 29 Regions Visited 2 Branch Regions . Pre-discovered Areas . | . . . Known Exits Taken 1 | . 1 . Unknown Exits Taken 1 | 1 . . Scrap Searched . | . . . Spaces Dug . | . . . Terrain Destroyed 2 | . 1 1 Melee . | . . . Projectile 2 | . 1 1 AOE . | . . . Terrain Rammed . | . . . Walls Destroyed . | . . . Machines Disabled . | . . . Actions | -11 -10 -9 --------- Run | Scr Mat Mat Total 1073 | 1 792 280 Wait 97 | . 92 5 Move 781 | 1 557 223 Hop . | . . . Pick Up 29 | . 18 11 Fast Attach 7 | . 7 . Attach 11 | . 4 7 Detach . | . . . Swap 15 | . 11 4 Drop 27 | . 21 6 Fire 99 | . 82 17 Melee . | . . . Ram 2 | . . 2 Kick 5 | . . 5 Crush . | . . . Escape Stasis . | . . . Rewire . | . . . Trap . | . . . Miscellaneous . | . . . Route ------- -11/Scrapyard -10/Materials (discovered 3 exits: *Mat x3) -9/Materials History --------- Turn | Location | Event 1 | -11/Scrapyard | Discovered new exit (range 1) 3 | -11/Scrapyard | Entered Materials 219 | -10/Materials | Discovered new exit (range 7) 257 | -10/Materials | Repaired Assault Rifle 287 | -10/Materials | Repaired Aluminum Leg 300 | -10/Materials | Build established: Mutant 314 | -10/Materials | Repaired Aluminum Leg 461 | -10/Materials | Discovered new exit (range 11) 988 | -10/Materials | Discovered new exit (range 14) 1009 | -10/Materials | Identified exit to Materials 1052 | -10/Materials | Entered another Materials area 1052 | -9/Materials | Evolved 2 slots: Propulsion x2 1170 | -9/Materials | Lost 3 parts (1n2w) 1246 | -9/Materials | Core integrity fell below 50% 1279 | -9/Materials | Lost 3 parts (1p1n1w) 1352 | -9/Materials | Core integrity fell below 20% 1355 | -9/Materials | Destroyed by G-34 Mercenary with Small Laser Last Messages --------------- 01263_ The floor emits a surge of raw power. 01263_ System corrupted (+2). 01289_ System corrupted: Component data lost. 01315_ Triggered Alarm Trap. 01315_ An alarm sounds. 01315_ ALERT: Alarm triggered, dispatching investigation squad. 01319_ System corrupted: Heat flow error (+162). 01321_ O-16 Technician uses terminal to summon reinforcements. 01321_ ALERT: Hostiles spotted, dispatching reinforcements to Terminal M006. 01321_ O-16 Technician locks terminal. 01322_ T-07 Excavator is excavating. 01330_ O-16 Technician: "IFF HANDSHAKE FAILED. SECURING TERMINAL." 01335_ ALERT: Hostiles spotted, dispatching reinforcements to Terminal M003. 01340_ System corrupted: Matter fused (-6). 01340_ Titanium Leg destroyed. 01347_ Slammed into G-34 Mercenary. 01349_ Imp. Ion Engine destroyed. 01351_ Titanium Leg destroyed. Map ----- +----------------------------------------------------+ | ????????????????????????????????????????????? | | ????????????????????????????????????????????? | | ????????????????????????????????????????????? | | ????????????????????????????????????????????? | | ????????????????????????????????????????????? | | ????????????????????????????????????????????? | | ????????????????????????????????????????????? | | ????????????????????????????????????????????? | | ????????????????????????????????????????????? | | ????????????????????????????????????????????? | | ????????????????????????????????????????????? | | ????????????????????????????????????????????? | | ????????????????????????????????????????????? | | ????????????????????????????????????????????? | | ????????????????????????######??????????????? | | ????????????????????????# ???????????????? | | ????????????????????????# ???????????????? | | ????????????????????????# ???????????????? | | ????????????????????????# #?##????????????? | | ????????????????????????# # !?????????????? | | ????????????????????????# g # ??????????????? | | ????????????????????????# g/???????????????? | | ????????????????????????# #???????????????? | | ????????????????????????+ #???????????????? | | ????????????????????????# #???????????????? | | ????????????????????????#@ #???????????????? | | ????????????????????????# #???????????????? | | ????????????????????????# #???????????????? | | ????????????????????????#gg ########????????? | | ????????????????????????# #????????? | | ????????????????????????# g #????????? | | ????????????????????????# #????????? | | ????????????????????????# #####+##????????? | | ????????????????????????# #???????????????? | | ????????????????????????# #???????????????? | | ????????????????????????# #???????????????? | | ????????????????????????# #???????????????? | | ????????????????????????# #???????????????? | | ????????????????????????# ########????????? | | ????????????????????????# Y # #????????? | | ??????????????????????#?# # """ #????????? | | ?????????????????????# # # """ #????????? | | ??????????????????????# + """ #????????? | | ??????????????????????# # # #????????? | | ??????????????????????### # #????????? | | ???????????????????????## ########????????? | | ????????????????######## #??????????????? | | ????????????????# #??????????????? | | ????????????????# T #??????????????? | | ????????????????# #??????????????? | +----------------------------------------------------+ Best States ------------- Heat Dissipation 39 Energy Generation 14 Energy Capacity 265 Matter Stores 300 Matter Capacity 300 Sight Range 16 Terrain Scan Density 10 Evasion (%) 55 Recoil Reduction 1 Item Schematics ----------------- None Robot Schematics ------------------ None Fabricated ------------ Nothing Alien Tech Used ----------------- None Achievements -------------- None Challenges ------------ None Game ------ Seed SlugSegregatorShifter Manual? 0 Play Time 00:15:16 Cumulative 51.6 hours Start 2021.10.09 @ 16:00:25 End 2021.10.09 @ 16:12:13 Sessions 1 Manual Loads 0 Difficulty Rogue Special Mode None Game No. 80 Rogue 80 Adventurer 0 Explorer 0 Win Type - Total 0 Types 0/0/0/0/0/0/0/0/0 Lore% 28 Gallery% 46 Achievement% 30 Wizard Run 0 Options --------- ASCII 0 Keyboard 0 Movement Mouse Keybinds 0 Fullscreen 1 Font 16/Cog Map View 76x50 Tactical HUD 1 Map Filters NONE Filters NONE Steam 1 RUN: 14f18546-d808-4d17-b286-aab8e36513ef